bitfinex/quotes_SOLUSD_20241216
["timestamp","ask_amount","ask_price","bid_price","bid_amount"]
[1734372137247,0.511825,219.56,219.55,16.46476506]
[1734372138447,0.511825,219.56,219.54,16.46476506]
[1734372139347,0.511825,219.56,219.55,20.0]
[1734372139934,0.511825,219.56,219.54,20.0]
[1734372140347,0.511825,219.56,219.51,143.45581741]
[1734372141060,0.511825,219.56,219.51,165.81632073]
[1734372141431,0.511825,219.56,219.52,22.36050332]
[1734372141627,0.511825,219.56,219.55,20.0]
[1734372142451,0.511825,219.56,219.54,20.0]
[1734372143158,16.97659006,219.56,219.54,20.0]
[1734372143731,16.46476506,219.55,219.46,11.05860471]
[1734372143935,16.46476506,219.49,219.46,5.55581741]
[1734372144358,16.46476506,219.5,219.45,1.6461]
[1734372145377,16.46476506,219.51,219.45,1.6461]
[1734372145757,16.46476506,219.5,219.45,1.6461]
[1734372145964,16.46476506,219.5,219.46,20.0]
[1734372146753,16.46476506,219.52,219.48,20.0]
[1734372146979,16.46476506,219.54,219.49,20.0]
[1734372147283,16.46476506,219.54,219.5,20.0]
[1734372147797,16.46476506,219.53,219.48,20.0]
[1734372147957,16.46476506,219.52,219.48,20.0]
[1734372148380,16.46476506,219.53,219.48,20.0]
[1734372148690,16.46476506,219.54,219.5,20.0]
[1734372149191,0.511825,219.56,219.52,20.0]
[1734372149357,16.97659006,219.56,219.52,20.0]
[1734372150251,0.511825,219.56,219.54,20.0]
[1734372150457,0.511825,219.56,219.55,20.0]
[1734372152222,0.511825,219.56,219.54,20.0]
[1734372152223,16.97659006,219.56,219.54,20.0]
[1734372152507,16.46476506,219.55,219.54,20.0]
[1734372152720,0.511825,219.56,219.54,20.0]
[1734372152721,16.97659006,219.56,219.54,20.0]
[1734372153079,16.46476506,219.55,219.51,20.0]
[1734372153605,16.97659006,219.56,219.51,20.0]
[1734372155014,16.46476506,219.55,219.51,20.0]
[1734372157723,16.97659006,219.56,219.52,20.0]
[1734372157882,16.46476506,219.55,219.52,20.0]
[1734372158077,16.46476506,219.54,219.52,20.0]
[1734372158308,0.511825,219.56,219.48,146.24066258]
[1734372158309,16.46476506,219.55,219.51,20.0]
[1734372159011,0.511825,219.56,219.52,20.0]
[1734372159224,16.46476506,219.55,219.52,20.0]
[1734372159425,0.511825,219.56,219.52,20.0]
[1734372159636,0.511825,219.56,219.53,20.0]
[1734372159844,0.511825,219.56,219.55,20.0]
[1734372163059,0.511825,219.56,219.55,25.5027873]
[1734372163416,0.511825,219.56,219.55,179.86755236]
[1734372163617,2.5e-05,219.56,219.55,176.00696506]
[1734372163821,16.46476506,219.66,219.56,14.47447971]
[1734372164129,16.46476506,219.66,219.61,20.0]
[1734372164531,16.46476506,219.66,219.62,20.0]
[1734372165064,16.46476506,219.65,219.61,20.0]
[1734372165347,16.46476506,219.63,219.61,20.0]
[1734372165549,16.46476506,219.62,219.58,137.9]
[1734372165760,16.46476506,219.59,219.56,14.47447971]
[1734372166046,16.46476506,219.57,219.52,146.8191855]
[1734372166259,16.46476506,219.58,219.52,146.8191855]
[1734372166456,16.46476506,219.59,219.53,5.55581741]
[1734372167037,16.46476506,219.61,219.57,20.0]
[1734372167449,16.46476506,219.62,219.57,20.0]
[1734372167640,16.46476506,219.62,219.58,20.0]
[1734372167950,16.46476506,219.63,219.59,20.0]
[1734372168460,16.46476506,219.62,219.59,20.0]
[1734372168637,16.46476506,219.62,219.58,20.0]
[1734372169023,16.46476506,219.61,219.58,20.0]
[1734372169226,16.46476506,219.59,219.57,20.0]
[1734372169417,16.46476506,219.58,219.57,20.0]
[1734372170535,16.46476506,219.59,219.57,20.0]
[1734372171240,16.46476506,219.58,219.57,20.0]
[1734372171554,16.46476506,219.58,219.54,5.5027855]
[1734372171752,16.46476506,219.55,219.49,139.5479]
[1734372171961,16.46476506,219.54,219.49,139.5479]
[1734372172130,16.46476506,219.55,219.49,139.5479]
[1734372172328,16.46476506,219.56,219.49,167.07126797]
[1734372172745,16.46476506,219.57,219.5,16.46476506]
[1734372172925,16.46476506,219.56,219.52,20.0]
[1734372173537,16.46476506,219.55,219.52,20.0]
[1734372174040,16.46476506,219.54,219.49,12.70650291]
[1734372174228,16.46476506,219.51,219.49,11.05860291]
[1734372174456,16.46476506,219.5,219.43,144.9181855]
[1734372174757,16.46476506,219.5,219.43,166.93876797]
[1734372175257,16.46476506,219.52,219.45,154.36476506]
[1734372175565,16.46476506,219.53,219.45,165.42336797]
[1734372175730,16.46476506,219.53,219.46,22.02058247]
[1734372176064,16.46476506,219.56,219.48,154.36476506]
[1734372176356,16.46476506,219.55,219.48,159.92058247]
[1734372176567,16.46476506,219.54,219.51,20.0]
[1734372176856,16.46476506,219.53,219.51,20.0]
[1734372177356,16.46476506,219.52,219.51,20.0]
[1734372177523,16.46476506,219.53,219.51,20.0]
[1734372178438,16.46476506,219.54,219.51,20.0]
[1734372178643,7.10263592,219.57,219.53,20.0]
[1734372178973,23.56740098,219.6,219.54,20.0]
[1734372179180,16.46476506,219.59,219.55,20.0]
[1734372179345,16.46476506,219.6,219.55,20.0]
[1734372179672,16.46476506,219.6,219.52,16.46476506]
[1734372179673,16.46476506,219.61,219.57,20.0]
[1734372179875,7.10263592,219.63,219.58,16.46476506]
[1734372180040,16.46476506,219.64,219.58,20.0]
[1734372180236,16.46476506,219.63,219.6,20.0]
[1734372180442,16.46476506,219.61,219.53,5.5027855]
[1734372180655,16.46476506,219.56,219.53,5.5027855]
[1734372180846,16.46476506,219.56,219.49,157.78156506]
[1734372181049,7.10263592,219.61,219.48,11.05860291]
[1734372181050,7.10263592,219.61,219.48,148.95860291]
[1734372181341,7.10263592,219.59,219.48,11.05860291]
[1734372181546,7.10263592,219.59,219.48,5.5027855]
[1734372181547,7.10263592,219.57,219.48,5.5027855]
[1734372181871,16.46476506,219.54,219.48,5.5027855]
[1734372182655,16.46476506,219.54,219.51,20.0]
[1734372182857,16.46476506,219.53,219.51,20.0]
[1734372183068,16.46476506,219.52,219.48,20.0]
[1734372183245,7.10263592,219.57,219.48,20.0]
[1734372183246,16.46476506,219.51,219.48,20.0]
[1734372183565,16.46476506,219.51,219.47,20.0]
[1734372184975,16.46476506,219.55,219.51,20.0]
[1734372185158,16.46476506,219.58,219.51,36.46476506]
[1734372185348,23.56740098,219.6,219.56,20.0]
[1734372185558,16.46476506,219.6,219.56,20.0]
[1734372185953,16.46476506,219.61,219.54,36.46476506]
[1734372186161,6.3955,219.64,219.54,36.46476506]
[1734372186162,16.46476506,219.64,219.59,20.0]
[1734372187593,16.46476506,219.63,219.59,20.0]
[1734372188295,16.46476506,219.61,219.58,20.0]
[1734372188505,16.46476506,219.61,219.57,20.0]
[1734372188788,16.46476506,219.63,219.59,20.0]
[1734372191090,16.46476506,219.66,219.59,36.46476506]
[1734372191387,16.46476506,219.64,219.6,20.0]
[1734372191590,16.46476506,219.63,219.6,20.0]
[1734372191789,16.46476506,219.62,219.6,20.0]
[1734372193187,16.46476506,219.61,219.57,137.9]
[1734372193490,16.46476506,219.58,219.54,5.55581741]
[1734372193687,7.10263592,219.66,219.54,5.55581741]
[1734372193688,16.46476506,219.6,219.54,5.55581741]
[1734372194191,16.46476506,219.62,219.55,16.46476506]
[1734372194399,16.46476506,219.62,219.58,20.0]
[1734372194567,16.46476506,219.6,219.57,20.0]
[1734372195679,16.46476506,219.59,219.57,20.0]
[1734372196081,16.46476506,219.58,219.53,5.5027855]
[1734372196266,16.46476506,219.54,219.49,5.55581741]
[1734372196467,16.46476506,219.52,219.47,1.5173]
[1734372196663,7.10263592,219.59,219.47,1.5173]
[1734372196664,16.46476506,219.53,219.47,1.5173]
[1734372197166,16.46476506,219.52,219.47,1.5173]
[1734372197888,16.46476506,219.53,219.47,1.5173]
[1734372198795,16.46476506,219.51,219.48,20.0]
[1734372199089,14.20527184,219.58,219.5,20.0]
[1734372199090,16.46476506,219.54,219.5,20.0]
[1734372199287,16.46476506,219.55,219.5,20.0]
[1734372199493,16.46476506,219.56,219.52,20.0]
[1734372199668,7.10263592,219.59,219.5,20.0]
[1734372199669,16.46476506,219.55,219.51,20.0]
[1734372200366,16.46476506,219.55,219.5,20.0]
[1734372200565,16.46476506,219.51,219.48,20.0]
[1734372200768,7.10263592,219.58,219.45,5.5027855]
[1734372200769,16.46476506,219.5,219.45,5.5027855]
[1734372200965,16.46476506,219.47,219.41,139.5132]
[1734372202175,14.20527184,219.55,219.41,139.5132]
[1734372202176,16.46476506,219.52,219.45,16.46476506]
[1734372202393,7.10263592,219.54,219.47,16.46476506]
[1734372202394,16.46476506,219.54,219.47,16.46476506]
[1734372202604,16.46476506,219.53,219.46,16.46476506]
[1734372202815,16.46476506,219.51,219.44,16.46476506]
[1734372203103,16.46476506,219.52,219.45,16.46476506]
[1734372203266,16.46476506,219.53,219.48,20.0]
[1734372203904,16.46476506,219.53,219.46,16.46476506]
[1734372204244,16.46476506,219.54,219.5,20.0]
[1734372204396,16.46476506,219.53,219.49,20.0]
[1734372204782,16.46476506,219.5,219.45,20.0]
[1734372204977,16.46476506,219.5,219.43,1.85528092]
[1734372204978,16.46476506,219.47,219.43,1.85528092]
[1734372205174,16.46476506,219.47,219.42,143.45581741]
[1734372205396,16.46476506,219.47,219.42,5.55581741]
[1734372205571,16.46476506,219.5,219.43,21.96755056]
[1734372205772,16.46476506,219.51,219.44,16.46476506]
[1734372205985,16.46476506,219.56,219.43,11.05860291]
[1734372205986,16.46476506,219.49,219.43,5.55581741]
[1734372206184,16.46476506,219.5,219.43,22.02058247]
[1734372206501,16.46476506,219.52,219.48,20.0]
[1734372207406,16.46476506,219.5,219.47,20.0]
[1734372208015,16.46476506,219.51,219.47,20.0]
[1734372208698,16.46476506,219.48,219.46,20.0]
[1734372208902,16.46476506,219.49,219.46,20.0]
[1734372209284,16.46476506,219.5,219.46,20.0]
[1734372209609,16.46476506,219.51,219.46,20.0]
[1734372209817,16.46476506,219.51,219.47,20.0]
[1734372211220,16.46476506,219.52,219.48,20.0]
[1734372211395,14.20527184,219.59,219.48,20.0]
[1734372211396,16.46476506,219.51,219.48,20.0]
[1734372211599,16.46476506,219.51,219.47,20.0]
[1734372211801,16.46476506,219.53,219.48,20.0]
[1734372212010,16.46476506,219.57,219.52,20.0]
[1734372212333,16.46476506,219.56,219.52,20.0]
[1734372212613,7.10263592,219.59,219.52,20.0]
[1734372212614,16.46476506,219.55,219.52,20.0]
[1734372212815,16.46476506,219.53,219.48,20.0]
[1734372213022,7.10263592,219.59,219.43,5.55581741]
[1734372213023,16.46476506,219.49,219.43,5.55581741]
[1734372213188,16.46476506,219.49,219.43,1.85289066]
[1734372213387,16.46476506,219.49,219.42,16.46476506]
[1734372213815,7.10263592,219.55,219.41,1.6132]
[1734372213816,16.46476506,219.48,219.41,157.7945247]
[1734372213999,16.46476506,219.49,219.42,154.36476506]
[1734372214184,16.46476506,219.49,219.45,20.0]
[1734372214396,16.46476506,219.48,219.45,20.0]
[1734372214613,16.46476506,219.49,219.45,20.0]
[1734372215119,16.46476506,219.46,219.43,20.0]
[1734372215491,16.46476506,219.45,219.41,1.6132]
[1734372216710,16.46476506,219.47,219.43,20.0]
[1734372216904,7.10263592,219.54,219.45,20.0]
[1734372216905,16.46476506,219.49,219.45,20.0]
[1734372217205,16.46476506,219.5,219.46,20.0]
[1734372217621,31.71180098,219.56,219.48,20.0]
[1734372217622,16.46476506,219.52,219.48,20.0]
[1734372218302,16.46476506,219.53,219.49,20.0]
[1734372218720,16.46476506,219.54,219.49,20.0]
[1734372219032,16.46476506,219.55,219.5,20.0]
[1734372219322,16.46476506,219.56,219.51,20.0]
[1734372219627,16.46476506,219.56,219.52,20.0]
[1734372219995,16.46476506,219.57,219.52,20.0]
[1734372222306,16.46476506,219.55,219.51,20.0]
[1734372222932,16.46476506,219.54,219.51,20.0]
[1734372223301,15.03601073,219.61,219.51,20.0]
[1734372223302,16.46476506,219.55,219.51,20.0]
[1734372223827,16.46476506,219.56,219.51,20.0]
[1734372223994,16.46476506,219.57,219.52,20.0]
[1734372224200,16.46476506,219.59,219.55,20.0]
[1734372224426,16.46476506,219.62,219.57,20.0]
[1734372224810,16.46476506,219.6,219.57,20.0]
[1734372225029,16.46476506,219.59,219.57,20.0]
[1734372225233,16.46476506,219.58,219.57,20.0]
[1734372226109,16.46476506,219.58,219.54,137.9]
[1734372226335,16.46476506,219.55,219.54,20.0]
[1734372226504,16.46476506,219.55,219.52,5.55581741]
[1734372226833,16.46476506,219.53,219.46,150.51860291]
[1734372227031,16.46476506,219.52,219.46,150.51860291]
[1734372227335,16.46476506,219.53,219.47,5.55581741]
[1734372227830,16.46476506,219.53,219.5,20.0]
[1734372228431,16.46476506,219.51,219.5,20.0]
[1734372229229,16.46476506,219.51,219.47,5.55581741]
[1734372229409,16.46476506,219.48,219.46,1.56]
[1734372229829,16.46476506,219.47,219.42,143.45581741]
[1734372230030,16.46476506,219.46,219.42,5.55581741]
[1734372230747,16.46476506,219.48,219.45,20.0]
[1734372231034,16.46476506,219.48,219.42,5.55581741]
[1734372231035,16.46476506,219.5,219.46,20.0]
[1734372231333,16.46476506,219.48,219.46,20.0]
[1734372232127,16.46476506,219.5,219.46,20.0]
[1734372232304,16.46476506,219.51,219.46,20.0]
[1734372232506,16.46476506,219.5,219.46,20.0]
[1734372232943,16.46476506,219.49,219.46,20.0]
[1734372234318,16.46476506,219.47,219.45,20.0]
[1734372234513,32.92953012,219.46,219.41,1.82900309]
[1734372234711,6.1167,219.5,219.34,139.5352]
[1734372234712,16.46476506,219.42,219.34,139.5352]
[1734372234924,16.46476506,219.38,219.34,139.5352]
[1734372235312,16.46476506,219.39,219.34,141.35131098]
[1734372235708,16.46476506,219.45,219.34,141.35131098]
[1734372235709,16.46476506,219.42,219.35,16.46476506]
[1734372235910,16.46476506,219.41,219.35,143.45581741]
[1734372236116,16.46476506,219.4,219.35,5.55581741]
[1734372236411,16.46476506,219.41,219.38,20.0]
[1734372238050,16.46476506,219.41,219.32,17.7266053]
[1734372238051,16.46476506,219.39,219.32,137.9]
[1734372238212,16.46476506,219.33,219.29,11.05860291]
[1734372238416,16.46476506,219.31,219.29,5.55581741]
[1734372238849,16.46476506,219.33,219.29,5.55581741]
[1734372239047,23.776884,219.43,219.29,5.55581741]
[1734372239209,16.46476506,219.33,219.29,5.55581741]
[1734372239415,16.46476506,219.33,219.32,20.0]
[1734372240336,16.46476506,219.33,219.29,5.55581741]
[1734372240542,16.46476506,219.31,219.29,5.55581741]
[1734372240746,16.46476506,219.33,219.29,5.55581741]
[1734372241116,16.46476506,219.32,219.29,5.55581741]
[1734372241557,16.46476506,219.33,219.32,20.0]
[1734372242219,16.46476506,219.36,219.32,20.0]
[1734372242417,23.776884,219.43,219.32,20.0]
[1734372242418,16.46476506,219.35,219.32,20.0]
[1734372242649,16.46476506,219.34,219.32,20.0]
[1734372242841,16.46476506,219.35,219.32,20.0]
[1734372243843,16.46476506,219.33,219.32,20.0]
[1734372244864,16.46476506,219.33,219.28,20.0]
[1734372245065,16.46476506,219.29,219.28,20.0]
[1734372245354,16.46476506,219.31,219.28,20.0]
[1734372245644,16.46476506,219.3,219.28,20.0]
[1734372246150,16.46476506,219.32,219.28,20.0]
[1734372246334,6.5933,219.44,219.26,23.30586506]
[1734372246335,8.71601073,219.44,219.3,16.46476506]
[1734372246528,16.46476506,219.39,219.35,20.0]
[1734372246724,16.46476506,219.38,219.35,20.0]
[1734372246921,16.46476506,219.36,219.35,20.0]
[1734372247148,16.46476506,219.36,219.34,20.0]
[1734372247334,16.46476506,219.35,219.34,20.0]
[1734372247857,16.46476506,219.36,219.34,20.0]
[1734372249272,16.46476506,219.4,219.35,20.0]
[1734372249430,16.46476506,219.43,219.39,20.0]
[1734372249854,16.46476506,219.41,219.39,20.0]
[1734372250049,1.6454,219.49,219.38,20.0]
[1734372250050,16.46476506,219.4,219.38,20.0]
[1734372250216,16.46476506,219.41,219.38,20.0]
[1734372250852,1.6454,219.49,219.38,20.0]
[1734372250853,16.46476506,219.42,219.38,20.0]
[1734372251030,16.46476506,219.42,219.39,20.0]
[1734372251231,1.6454,219.49,219.38,20.0]
[1734372251232,16.46476506,219.41,219.38,20.0]
[1734372251448,16.46476506,219.42,219.38,20.0]
[1734372252231,16.46476506,219.43,219.39,20.0]
[1734372252624,16.46476506,219.46,219.41,20.0]
[1734372252825,16.46476506,219.45,219.42,20.0]
[1734372253050,16.46476506,219.44,219.42,20.0]
[1734372253263,16.46476506,219.43,219.42,20.0]
[1734372253449,16.46476506,219.43,219.39,20.0]
[1734372253650,16.46476506,219.41,219.39,20.0]
[1734372253840,16.46476506,219.4,219.39,20.0]
[1734372254065,16.46476506,219.4,219.35,1.619]
[1734372254252,16.46476506,219.39,219.35,1.619]
[1734372254635,16.46476506,219.38,219.3,162.79716506]
[1734372254862,16.46476506,219.37,219.3,162.79716506]
[1734372255066,16.46476506,219.36,219.3,8.4324]
[1734372256546,16.46476506,219.38,219.31,16.46476506]
[1734372257661,16.46476506,219.38,219.34,20.0]
[1734372258572,16.46476506,219.39,219.33,20.0]
[1734372258783,16.46476506,219.39,219.35,20.0]
[1734372258945,16.46476506,219.4,219.36,20.0]
[1734372259376,1.647,219.46,219.37,20.0]
[1734372259377,16.46476506,219.42,219.37,20.0]
[1734372259845,16.46476506,219.45,219.39,20.0]
[1734372260182,16.46476506,219.45,219.41,20.0]
[1734372261950,16.46476506,219.44,219.39,20.0]
[1734372262258,16.46476506,219.45,219.4,20.0]
[1734372262572,16.46476506,219.42,219.4,20.0]
[1734372262876,16.46476506,219.41,219.32,149.87504105]
[1734372263173,16.46476506,219.45,219.26,16.46476506]
[1734372263174,16.46476506,219.34,219.26,16.46476506]
[1734372263341,16.46476506,219.33,219.26,154.36476506]
[1734372263550,16.46476506,219.34,219.27,16.46476506]
[1734372263856,16.46476506,219.35,219.27,16.46476506]
[1734372264165,16.46476506,219.34,219.27,16.46476506]
[1734372264363,16.46476506,219.32,219.31,20.0]
[1734372264546,16.46476506,219.32,219.26,5.28137297]
[1734372265674,16.46476506,219.31,219.26,5.28137297]
[1734372266348,16.46476506,219.32,219.26,5.28137297]
[1734372266769,16.46476506,219.33,219.29,20.0]
[1734372267869,16.46476506,219.32,219.29,20.0]
[1734372268962,16.46476506,219.33,219.29,20.0]
[1734372269157,16.46476506,219.34,219.29,20.0]
[1734372269355,16.46476506,219.3,219.27,20.0]
[1734372269750,16.46476506,219.31,219.27,20.0]
[1734372270146,16.46476506,219.33,219.29,20.0]
[1734372271073,16.46476506,219.32,219.28,20.0]
[1734372271243,16.46476506,219.31,219.28,20.0]
[1734372271664,16.46476506,219.32,219.28,20.0]
[1734372272169,16.46476506,219.31,219.28,20.0]
[1734372272358,16.46476506,219.29,219.28,20.0]
[1734372272560,16.46476506,219.29,219.27,20.0]
[1734372273148,16.46476506,219.32,219.27,20.0]
[1734372273564,16.46476506,219.31,219.27,20.0]
[1734372274078,16.46476506,219.32,219.27,20.0]
[1734372274252,16.46476506,219.32,219.28,20.0]
[1734372274453,23.776884,219.41,219.28,20.0]
[1734372274454,16.46476506,219.33,219.3,20.0]
[1734372274864,23.776884,219.41,219.3,20.0]
[1734372274865,16.46476506,219.34,219.3,20.0]
[1734372275173,16.46476506,219.35,219.32,20.0]
[1734372276961,16.46476506,219.37,219.34,20.0]
[1734372277370,16.46476506,219.38,219.34,20.0]
[1734372277569,16.46476506,219.4,219.36,20.0]
[1734372278277,16.46476506,219.42,219.37,20.0]
[1734372278450,16.46476506,219.4,219.38,20.0]
[1734372278878,16.46476506,219.41,219.38,20.0]
[1734372279558,16.46476506,219.42,219.38,20.0]
[1734372280776,16.46476506,219.43,219.39,20.0]
[1734372280992,16.46476506,219.44,219.41,20.0]
[1734372282165,16.46476506,219.42,219.41,20.0]
[1734372282766,16.46476506,219.44,219.41,20.0]
[1734372283069,16.46476506,219.42,219.41,20.0]
[1734372284894,16.46476506,219.42,219.4,20.0]
[1734372285190,16.46476506,219.41,219.4,20.0]
[1734372287567,16.46476506,219.41,219.32,137.9]
[1734372287897,16.46476506,219.33,219.29,1.6296]
[1734372288104,16.46476506,219.32,219.29,3.46487605]
[1734372288262,16.46476506,219.32,219.29,1.6296]
[1734372289168,16.46476506,219.32,219.31,20.0]
[1734372289894,16.46476506,219.32,219.29,1.6296]
[1734372290610,16.46476506,219.32,219.28,8.63514649]
[1734372290611,16.46476506,219.3,219.28,8.63514649]
[1734372291000,16.46476506,219.29,219.28,6.8405]
[1734372291200,16.46476506,219.3,219.27,5.28137297]
[1734372291412,16.46476506,219.31,219.27,7.08680424]
[1734372291617,16.46476506,219.32,219.27,13.92730424]
[1734372291992,16.46476506,219.31,219.27,13.92730424]
[1734372292195,16.46476506,219.3,219.27,13.92730424]
[1734372292407,16.46476506,219.3,219.29,20.0]
[1734372293991,16.46476506,219.31,219.29,20.0]
[1734372294212,16.46476506,219.31,219.3,20.0]
[1734372295013,7.12271073,219.36,219.3,20.0]
[1734372295205,7.12271073,219.36,219.32,20.0]
[1734372295206,16.46476506,219.36,219.32,20.0]
[1734372295389,16.46476506,219.37,219.32,20.0]
[1734372295593,16.46476506,219.38,219.33,20.0]
[1734372296315,16.46476506,219.38,219.34,20.0]
[1734372297802,16.46476506,219.39,219.34,20.0]
[1734372298003,16.46476506,219.4,219.36,20.0]
[1734372299300,7.12271073,219.44,219.36,20.0]
[1734372299301,16.46476506,219.42,219.36,20.0]
[1734372299494,16.46476506,219.42,219.38,20.0]
[1734372299701,16.46476506,219.41,219.38,20.0]
[1734372299920,16.46476506,219.42,219.38,20.0]
[1734372303119,16.46476506,219.44,219.39,20.0]
[1734372303295,16.46476506,219.46,219.4,20.0]
[1734372303516,16.46476506,219.45,219.38,43.30206506]
[1734372303826,16.46476506,219.44,219.39,20.0]
[1734372304028,16.46476506,219.44,219.41,20.0]
[1734372304230,16.46476506,219.43,219.41,20.0]
[1734372304608,16.46476506,219.44,219.41,20.0]
[1734372305111,7.12271073,219.5,219.41,20.0]
[1734372305112,16.46476506,219.42,219.41,20.0]
[1734372305525,16.46476506,219.44,219.41,20.0]
[1734372305732,16.46476506,219.42,219.41,20.0]
[1734372305919,16.46476506,219.44,219.41,20.0]
[1734372306122,16.46476506,219.45,219.41,20.0]
[1734372306502,16.46476506,219.44,219.41,20.0]
[1734372306705,16.46476506,219.45,219.41,20.0]
[1734372306933,16.46476506,219.47,219.44,20.0]
[1734372307508,16.46476506,219.49,219.45,20.0]
[1734372307707,16.46476506,219.48,219.44,20.0]
[1734372308038,16.46476506,219.53,219.46,36.46476506]
[1734372308249,16.46476506,219.51,219.48,20.0]
[1734372308448,16.46476506,219.53,219.48,20.0]
[1734372308736,16.46476506,219.53,219.46,16.46476506]
[1734372308737,16.46476506,219.53,219.49,20.0]
[1734372309228,7.12271073,219.59,219.52,20.0]
[1734372309425,16.46476506,219.58,219.53,20.0]
[1734372309628,16.46476506,219.6,219.55,20.0]
[1734372310131,16.46476506,219.58,219.56,20.0]
[1734372310509,16.46476506,219.58,219.55,20.0]
[1734372310704,16.46476506,219.57,219.55,20.0]
[1734372311123,16.46476506,219.56,219.55,20.0]
[1734372311440,16.46476506,219.56,219.53,20.0]
[1734372311603,16.46476506,219.55,219.53,20.0]
[1734372312625,16.46476506,219.54,219.52,20.0]
[1734372312804,16.46476506,219.53,219.52,20.0]
[1734372313528,30.89959473,219.61,219.52,20.0]
[1734372313721,16.46476506,219.54,219.52,20.0]
[1734372314038,16.46476506,219.53,219.52,20.0]
[1734372315624,23.776884,219.61,219.52,20.0]
[1734372315625,16.46476506,219.54,219.52,20.0]
[1734372315829,16.46476506,219.55,219.52,20.0]
[1734372316434,16.46476506,219.54,219.52,20.0]
[1734372316864,16.46476506,219.55,219.52,20.0]
[1734372317704,16.46476506,219.54,219.52,20.0]
[1734372318024,16.46476506,219.55,219.52,20.0]
[1734372318345,16.46476506,219.58,219.54,20.0]
[1734372318655,16.46476506,219.59,219.55,20.0]
[1734372319108,16.46476506,219.59,219.53,6.8327]
[1734372319109,16.46476506,219.59,219.56,20.0]
[1734372319935,16.46476506,219.61,219.56,26.8318]
[1734372320107,16.46476506,219.63,219.59,20.0]
[1734372320545,16.46476506,219.62,219.59,20.0]
[1734372320835,16.46476506,219.61,219.59,20.0]
[1734372321945,16.46476506,219.6,219.59,20.0]
[1734372322313,16.46476506,219.6,219.58,20.0]
[1734372322535,16.46476506,219.59,219.53,1.5544]
[1734372322744,23.776884,219.66,219.53,1.5544]
[1734372322745,16.46476506,219.54,219.53,1.5544]
[1734372322910,16.46476506,219.55,219.53,1.5544]
[1734372323434,16.46476506,219.56,219.53,1.5544]
[1734372323630,16.46476506,219.56,219.54,20.0]
[1734372324009,16.46476506,219.58,219.54,20.0]
[1734372324213,16.46476506,219.61,219.58,20.0]
[1734372325221,23.776884,219.66,219.59,20.0]
[1734372325222,16.46476506,219.62,219.59,20.0]
[1734372325415,16.46476506,219.64,219.6,20.0]
[1734372325623,16.46476506,219.63,219.6,20.0]
[1734372326034,16.46476506,219.64,219.58,20.0]
[1734372326236,16.46476506,219.65,219.6,20.0]
[1734372326416,16.46476506,219.65,219.61,20.0]
[1734372326944,7.9327,219.73,219.61,42.15656506]
[1734372327148,16.46476506,219.67,219.63,20.0]
[1734372327316,16.46476506,219.67,219.64,20.0]
[1734372328141,16.46476506,219.66,219.64,20.0]
[1734372329335,16.46476506,219.67,219.64,20.0]
[1734372329936,16.46476506,219.68,219.64,20.0]
[1734372330137,16.46476506,219.66,219.64,20.0]
[1734372331240,16.46476506,219.68,219.64,20.0]
[1734372331438,16.46476506,219.65,219.64,20.0]
[1734372331837,16.46476506,219.67,219.64,20.0]
[1734372332038,16.46476506,219.68,219.64,20.0]
[1734372332253,16.46476506,219.68,219.65,20.0]
[1734372332652,16.46476506,219.68,219.66,20.0]
[1734372333864,16.46476506,219.67,219.66,20.0]
[1734372334173,16.46476506,219.68,219.65,20.0]
[1734372335033,0.5434865,219.78,219.67,20.0]
[1734372335235,16.46476506,219.74,219.7,20.0]
[1734372335437,16.46476506,219.76,219.71,20.0]
[1734372336047,16.46476506,219.76,219.73,20.0]
[1734372336249,16.46476506,219.75,219.73,20.0]
[1734372336565,16.46476506,219.74,219.73,20.0]
[1734372339445,16.46476506,219.74,219.7,137.9]
[1734372339648,16.46476506,219.71,219.69,20.0]